bitfinex-derivatives/quotes_SOLF0:USTF0_20250215
["timestamp","ask_amount","ask_price","bid_price","bid_amount"]
[1739628982972,0.03269797,194.65,194.61,0.03685236]
[1739628983469,0.03269797,194.65,194.62,5.1374]
[1739628984171,14.22432579,194.72,194.61,0.03685236]
[1739628984569,14.22432579,194.72,194.6,14.22432579]
[1739628984770,5.1361,194.67,194.6,14.22432579]
[1739628984971,14.22432579,194.69,194.54,14.22432579]
[1739628985272,14.22432579,194.66,194.54,14.22432579]
[1739628985475,5.17443068,194.63,194.6,0.03338911]
[1739628986672,5.1377,194.61,194.6,0.03338911]
[1739628987173,5.1377,194.61,194.6,8.911e-05]
[1739628989576,185.9818,194.62,194.6,8.911e-05]
[1739628991378,0.03723068,194.63,194.6,8.911e-05]
[1739628992175,185.9818,194.69,194.6,8.911e-05]
[1739628992176,5.1361,194.68,194.6,8.911e-05]
[1739628992379,200.20612579,194.69,194.6,8.911e-05]
[1739628992775,5.1365,194.66,194.6,8.911e-05]
[1739628992980,200.20612579,194.69,194.6,8.911e-05]
[1739628993178,14.22432579,194.66,194.6,8.911e-05]
[1739628993480,14.26179395,194.66,194.6,8.911e-05]
[1739628995484,5.1374,194.63,194.6,8.911e-05]
[1739628995783,14.26179395,194.66,194.6,8.911e-05]
[1739628998287,5.1371,194.64,194.6,8.911e-05]
[1739628998783,5.1372,194.63,194.6,8.911e-05]
[1739629000690,19.36202579,194.61,194.6,8.911e-05]
[1739629001284,5.139,194.56,194.51,26.45097775]
[1739629001881,14.22432579,194.61,194.51,21.31067775]
[1739629002286,0.0332249,194.58,194.54,0.03950021]
[1739629002477,5.1392,194.56,194.54,0.03950021]
[1739629002885,0.0332249,194.58,194.54,0.03950021]
[1739629003084,5.1392,194.55,194.54,0.03950021]
[1739629003787,19.36352579,194.55,194.54,0.03950021]
[1739629003991,19.36352579,194.55,194.54,2.1e-07]
[1739629004884,5.1392,194.55,194.54,2.1e-07]
[1739629005080,5.139,194.57,194.54,2.1e-07]
[1739629005385,14.25755069,194.58,194.54,2.1e-07]
[1739629007489,19.39605069,194.58,194.54,2.1e-07]
[1739629007790,14.25755069,194.58,194.54,2.1e-07]
[1739629008493,19.39625069,194.58,194.54,2.1e-07]
[1739629008784,14.25755069,194.58,194.54,2.1e-07]
[1739629008993,0.0332249,194.58,194.54,5.13940021]
[1739629009193,0.0332249,194.58,194.54,2.1e-07]
[1739629009587,0.0332249,194.58,194.55,5.139]
[1739629009994,0.0332249,194.58,194.54,2.1e-07]
[1739629010197,14.22432579,194.64,194.54,2.1e-07]
[1739629010390,14.22432579,194.67,194.53,3.1627]
[1739629010795,5.1368,194.65,194.59,5.1381]
[1739629010994,5.1368,194.65,194.53,3.1627]
[1739629011497,0.03371392,194.61,194.57,0.03884038]
[1739629011689,14.22432579,194.67,194.57,0.03884038]
[1739629012495,5.1368,194.65,194.57,0.03884038]
[1739629012696,14.22432579,194.67,194.57,0.03884038]
[1739629012897,14.22432579,194.61,194.57,0.03884038]
[1739629013601,14.22432579,194.58,194.57,0.03884038]
[1739629014102,19.36282579,194.58,194.57,0.03884038]
[1739629018304,5.1382,194.59,194.57,0.03884038]
[1739629018499,0.03711461,194.63,194.57,0.03884038]
[1739629019298,14.2614404,194.63,194.57,0.03884038]
[1739629019903,0.03711461,194.63,194.57,0.03884038]
[1739629020500,0.03711461,194.63,194.6,5.1379]
[1739629021000,0.03711461,194.63,194.61,5.1374]
[1739629021203,0.03711461,194.63,194.57,0.03884038]
[1739629023002,14.2614404,194.63,194.57,0.03884038]
[1739629023202,5.1385,194.58,194.57,0.03884038]
[1739629023907,5.1385,194.58,194.57,4.038e-05]
[1739629025298,28.44865158,194.6,194.47,8.64999937]
[1739629025504,5.1401,194.52,194.47,8.64999937]
[1739629025807,22.8388392,194.58,194.48,5.1411]
[1739629026005,5.1395,194.55,194.47,1.5208]
[1739629026196,22.8388392,194.58,194.47,1.5208]
[1739629026398,22.8388392,194.61,194.47,1.5208]
[1739629026599,0.03627728,194.54,194.51,0.03467002]
[1739629026798,22.8388392,194.61,194.51,0.03467002]
[1739629026998,5.14,194.53,194.51,0.03467002]
[1739629027200,22.8388392,194.58,194.51,0.03467002]
[1739629027401,0.03389844,194.54,194.51,0.03467002]
[1739629027599,5.1398,194.53,194.51,0.03467002]
[1739629027800,0.03389844,194.54,194.51,0.03467002]
[1739629028608,0.03389844,194.54,194.51,5.17497002]
[1739629028808,0.03389844,194.54,194.51,0.03467002]
[1739629032507,5.14,194.52,194.51,0.03467002]
[1739629032707,5.14,194.52,194.51,7.002e-05]
[1739629033209,22.8388392,194.52,194.42,1.6522]
[1739629033816,5.1413,194.48,194.43,5.1424]
[1739629034208,0.03560109,194.47,194.44,0.03261465]
[1739629040922,5.17700109,194.47,194.44,0.03261465]
[1739629041520,0.03560109,194.47,194.44,0.03261465]
[1739629043120,5.17700109,194.47,194.44,0.03261465]
[1739629043321,0.03560109,194.47,194.44,0.03261465]
[1739629044221,185.9818,194.56,194.44,0.03261465]
[1739629044422,185.9818,194.56,194.44,22.8388392]
[1739629044620,185.9818,194.56,194.45,3.1855]
[1739629045021,68.62064054,194.57,194.45,3.1855]
[1739629045222,63.48164054,194.57,194.45,3.1855]
[1739629045522,0.03480564,194.53,194.5,5.1406]
[1739629046626,0.03480564,194.53,194.49,0.03275311]
[1739629046825,5.1401,194.52,194.49,0.03275311]
[1739629047020,0.03480564,194.53,194.49,0.03275311]
[1739629047422,5.14,194.52,194.49,0.03275311]
[1739629047617,0.03480564,194.53,194.49,0.03275311]
[1739629050728,0.03480564,194.53,194.52,5.14]
[1739629051526,14.26955031,194.62,194.53,5.1396]
[1739629051827,3.1794,194.64,194.5,14.26955031]
[1739629052129,3.1794,194.64,194.53,14.26955031]
[1739629052330,5.1378,194.61,194.56,5.139]
[1739629052729,0.03635416,194.6,194.57,0.03699595]
[1739629055430,5.17425416,194.6,194.57,0.03699595]
[1739629055828,0.03635416,194.6,194.57,0.03699595]
[1739629056033,5.1385,194.58,194.57,0.03699595]
[1739629058431,14.26955031,194.59,194.48,5.1411]
[1739629058631,14.26955031,194.56,194.47,1.5743]
[1739629059129,14.26955031,194.56,194.47,5.1411]
[1739629059335,14.26955031,194.53,194.46,1.6476]
[1739629059734,5.17902234,194.51,194.48,0.03241585]
[1739629060134,0.03842234,194.51,194.48,0.03241585]
[1739629060336,5.1408,194.49,194.48,0.03241585]
[1739629068443,0.03842234,194.51,194.48,0.03241585]
[1739629069045,5.17872234,194.51,194.48,0.03241585]
[1739629069546,5.1407,194.5,194.48,0.03241585]
[1739629071650,5.1408,194.49,194.48,0.03241585]
[1739629071945,0.03842234,194.51,194.48,0.03241585]
[1739629072138,5.1406,194.5,194.48,0.03241585]
[1739629072647,0.03842234,194.51,194.48,0.03241585]
[1739629072849,5.1406,194.5,194.48,0.03241585]
[1739629073552,0.03842234,194.51,194.48,0.03241585]
[1739629073751,5.1406,194.5,194.48,0.03241585]
[1739629073954,0.03842234,194.51,194.48,0.03241585]
[1739629074448,5.1408,194.49,194.48,0.03241585]
[1739629074954,0.03842234,194.51,194.48,0.03241585]
[1739629075746,5.1408,194.49,194.48,0.03241585]
[1739629079857,0.03842234,194.51,194.48,0.03241585]
[1739629080048,5.1406,194.5,194.48,0.03241585]
[1739629080650,0.03842234,194.51,194.48,0.03241585]
[1739629081953,0.03842234,194.51,194.48,5.17341585]
[1739629083059,0.03842234,194.51,194.48,0.03241585]
[1739629083452,0.03842234,194.51,194.49,5.1406]
[1739629083653,0.03842234,194.51,194.48,0.03241585]
[1739629084454,0.03842234,194.51,194.49,5.1406]
[1739629084957,0.03842234,194.51,194.48,5.17351585]
[1739629085154,0.03842234,194.51,194.48,0.03241585]
[1739629085751,5.17872234,194.51,194.48,0.03241585]
[1739629085950,0.03842234,194.51,194.48,0.03241585]
[1739629086347,0.03842234,194.51,194.5,5.1406]
[1739629090755,14.26955031,194.59,194.48,1.62981585]
[1739629090954,14.26955031,194.59,194.49,1.6259]
[1739629091151,5.1387,194.58,194.49,1.6259]
[1739629091350,5.1387,194.58,194.53,5.1395]
[1739629092063,0.03753649,194.57,194.54,0.03663868]
[1739629092356,0.03753649,194.57,194.56,5.139]
[1739629092758,0.03753649,194.57,194.54,0.03663868]
[1739629093555,0.03753649,194.57,194.56,5.139]
[1739629094856,0.03753649,194.57,194.54,0.03663868]
[1739629095660,5.17623649,194.57,194.54,0.03663868]
[1739629095862,0.03753649,194.57,194.54,0.03663868]
[1739629096163,14.26955031,194.56,194.54,0.03663868]
[1739629097063,19.40875031,194.56,194.54,0.03663868]
[1739629097763,5.1392,194.55,194.54,0.03663868]
[1739629099654,14.26955031,194.56,194.54,0.03663868]
[1739629101166,19.40865031,194.56,194.54,0.03663868]
[1739629101564,0.03753649,194.57,194.54,0.03663868]
[1739629102163,5.1392,194.55,194.54,0.03663868]
[1739629103268,5.1405,194.51,194.46,5.1416]
[1739629103463,14.26955031,194.53,194.46,5.1416]
[1739629103670,14.26955031,194.53,194.43,1.6568]
[1739629104365,5.1406,194.5,194.46,0.03266079]
[1739629104566,5.17644155,194.5,194.46,0.03266079]
[1739629105373,0.03584155,194.5,194.46,0.03266079]
[1739629106073,5.17654155,194.5,194.46,0.03266079]
[1739629106771,0.03584155,194.5,194.46,0.03266079]
[1739629108068,191.0,194.58,194.46,0.03266079]
[1739629108371,24.96575862,194.59,194.47,14.26955031]
[1739629108771,5.139,194.56,194.51,5.1401]
[1739629108971,5.139,194.56,194.47,14.26955031]
[1739629109172,0.0350726,194.55,194.52,0.03463775]
[1739629111274,14.26955031,194.53,194.52,0.03463775]
[1739629111468,19.40935031,194.53,194.52,0.03463775]
[1739629111670,14.26955031,194.53,194.43,8.78599937]
[1739629111871,14.26955031,194.5,194.43,7.12919937]
[1739629112575,14.26955031,194.5,194.42,3.1967]
[1739629112971,0.03282703,194.48,194.44,0.03341955]
[1739629113173,5.1419,194.45,194.44,0.03341955]
[1739629114678,5.1417,194.46,194.44,0.03341955]
[1739629114876,14.26955031,194.47,194.44,0.03341955]
[1739629118781,0.03282703,194.48,194.44,0.03341955]
[1739629119980,0.03282703,194.48,194.47,5.1414]
[1739629120182,205.26955031,194.56,194.44,14.30296986]
[1739629120379,24.96575862,194.59,194.45,3.1267]
[1739629120578,5.1391,194.56,194.45,3.1267]
[1739629120979,14.26955031,194.59,194.45,3.1267]
[1739629121187,14.26955031,194.59,194.5,5.1405]
[1739629121188,5.1393,194.55,194.5,5.1405]
[1739629121382,14.26955031,194.59,194.45,3.1267]
[1739629121583,0.03754948,194.54,194.5,5.17360476]
[1739629121986,0.03754948,194.54,194.5,0.03330476]
[1739629122788,5.1398,194.53,194.5,0.03330476]
[1739629123087,0.03754948,194.54,194.5,0.03330476]
[1739629123383,5.1403,194.52,194.5,0.03330476]
[1739629125080,0.03754948,194.54,194.5,0.03330476]
[1739629125287,5.1403,194.51,194.5,0.03330476]
[1739629126384,14.26955031,194.53,194.4,3.2561]
[1739629126576,14.26955031,194.48,194.41,5.1427]
[1739629127785,0.03448189,194.46,194.43,0.03405221]
[1739629128188,0.03448189,194.46,194.43,5.17645221]
[1739629129386,0.03448189,194.46,194.43,0.03405221]
[1739629129587,0.03448189,194.46,194.44,5.1421]
[1739629130090,0.03448189,194.46,194.43,5.17645221]
[1739629130787,0.03448189,194.46,194.43,0.03405221]
[1739629130983,0.03448189,194.46,194.44,5.1421]
[1739629132192,0.03448189,194.46,194.43,0.03405221]
[1739629132992,0.03448189,194.46,194.43,5.17635221]
[1739629136086,0.03448189,194.46,194.44,5.1421]
[1739629136487,0.03448189,194.46,194.43,0.03405221]
[1739629139393,0.03448189,194.46,194.44,5.1422]
[1739629139593,0.03448189,194.46,194.43,0.03405221]
[1739629140196,0.03448189,194.46,194.44,5.1422]
[1739629140592,0.03448189,194.46,194.43,0.03405221]
[1739629140796,0.03448189,194.46,194.45,5.1419]
[1739629140994,191.0,194.53,194.43,0.03405221]
[1739629141197,191.0,194.53,194.46,5.1414]
[1739629141388,5.1408,194.49,194.46,5.1414]
[1739629142092,5.17596546,194.49,194.46,5.1414]
[1739629142292,5.17596546,194.49,194.46,5.179859]
[1739629143192,0.03516546,194.49,194.46,0.038459]
[1739629144295,14.26955031,194.54,194.46,0.038459]
[1739629144296,14.26955031,194.57,194.46,14.30800931]
[1739629144504,14.26955031,194.57,194.47,3.2038]
[1739629144800,14.26955031,194.57,194.51,5.1402]
[1739629145501,0.03808872,194.56,194.52,0.03369284]
[1739629146000,5.1395,194.55,194.52,0.03369284]
[1739629146602,0.03808872,194.56,194.52,5.17369284]
[1739629147101,0.03808872,194.56,194.52,0.03369284]
[1739629148399,0.03808872,194.56,194.52,5.17369284]
[1739629148801,0.03808872,194.56,194.52,0.03369284]
[1739629149604,0.03808872,194.56,194.53,5.1398]
[1739629149903,0.03808872,194.56,194.52,0.03369284]
[1739629152107,0.03808872,194.56,194.52,5.17359284]
[1739629153607,9.17062739,194.56,194.52,5.17359284]
[1739629154207,14.30962739,194.56,194.52,5.17359284]
[1739629155012,9.17062739,194.56,194.52,5.17359284]
[1739629155309,9.17062739,194.56,194.52,0.03369284]
[1739629155710,9.17062739,194.56,194.52,5.17369284]
[1739629156005,9.17062739,194.56,194.52,0.03369284]
[1739629156206,14.30972739,194.56,194.52,0.03369284]
[1739629157014,14.30972739,194.56,194.52,5.17349284]
[1739629157313,9.17062739,194.56,194.52,0.03369284]
[1739629157509,9.17062739,194.56,194.53,5.1398]
[1739629158014,0.03808872,194.56,194.53,9.13253867]
[1739629158915,9.13253867,194.6,194.53,9.13253867]
[1739629159115,5.1389,194.57,194.53,5.1397]
[1739629160020,9.13253867,194.58,194.53,5.1397]
[1739629160315,9.13253867,194.56,194.52,0.03369284]
[1739629161016,5.1394,194.55,194.52,0.03369284]
[1739629161512,9.13253867,194.56,194.52,0.03369284]
[1739629161713,9.13253867,194.56,194.52,5.17359284]
[1739629161907,9.13253867,194.56,194.52,0.03369284]
[1739629162106,0.03291016,194.57,194.52,0.03369284]
[1739629164016,0.03291016,194.57,194.55,5.1391]
[1739629164311,0.03291016,194.57,194.52,0.03369284]
[1739629165913,0.03291016,194.57,194.56,5.139]
[1739629166216,0.03291016,194.57,194.52,0.03369284]
[1739629166414,0.03291016,194.57,194.55,5.1391]
[1739629166618,0.03291016,194.57,194.52,0.03369284]
[1739629167215,14.26567447,194.64,194.52,14.29936731]
[1739629167418,77.7221665,194.67,194.52,14.26567447]
[1739629167610,5.1371,194.64,194.59,5.1379]
[1739629168018,5.1371,194.64,194.52,14.26567447]
[1739629168214,14.26567447,194.67,194.55,14.26567447]
[1739629168414,0.02807122,194.6,194.56,3.13148926]
[1739629168814,0.02807122,194.6,194.57,5.1387]
[1739629169015,0.02807122,194.6,194.56,3.13148926]
[1739629169416,0.02807122,194.6,194.57,5.1387]
[1739629170015,0.02807122,194.6,194.56,8.27048926]
[1739629170319,0.02807122,194.6,194.56,3.13148926]
[1739629170519,0.02807122,194.6,194.57,5.1387]
[1739629173222,0.02807122,194.6,194.58,5.1384]
[1739629173424,0.02807122,194.6,194.56,3.13148926]
[1739629174316,0.02807122,194.6,194.57,5.1386]
[1739629174518,0.02807122,194.6,194.56,0.03638926]
[1739629174921,0.02807122,194.6,194.56,5.17528926]
[1739629175223,0.02807122,194.6,194.56,0.03638926]
[1739629178223,14.26567447,194.57,194.5,7.12919937]
[1739629178423,14.26567447,194.54,194.5,7.12919937]
[1739629179328,5.1403,194.51,194.5,7.12919937]
[1739629179621,19.40597447,194.51,194.5,7.16392174]
[1739629180127,19.40597447,194.51,194.5,2.174e-05]
[1739629182022,5.1418,194.46,194.41,1.5915]
[1739629182726,5.1421,194.45,194.41,1.5915]
[1739629183027,14.26567447,194.48,194.41,1.5915]
[1739629183217,0.0372667,194.45,194.41,1.62996365]
[1739629184730,0.0372667,194.45,194.43,5.1423]
[1739629185223,0.0372667,194.45,194.41,1.62996365]
[1739629185425,0.0372667,194.45,194.44,5.1422]
[1739629185830,0.0372667,194.45,194.43,5.1424]
[1739629186730,0.0372667,194.45,194.42,5.1426]
[1739629187431,0.0372667,194.45,194.43,5.1423]
[1739629187638,0.0372667,194.45,194.41,1.62996365]
[1739629187931,14.26567447,194.54,194.43,14.26567447]
[1739629188529,14.26567447,194.54,194.47,5.1411]
[1739629189032,0.03313151,194.52,194.49,0.03611087]
[1739629189629,5.1406,194.5,194.49,0.03611087]
[1739629191735,14.26567447,194.51,194.49,0.03611087]
[1739629192733,5.1406,194.5,194.49,0.03611087]
[1739629192930,14.26567447,194.51,194.49,0.03611087]
[1739629193234,19.40617447,194.51,194.49,0.03611087]
[1739629193437,14.26567447,194.51,194.49,0.03611087]
[1739629193635,19.40617447,194.51,194.49,0.03611087]
[1739629193835,14.26567447,194.51,194.49,0.03611087]
[1739629194337,19.40597447,194.51,194.49,0.03611087]
[1739629197638,9.13839461,194.5,194.49,0.03611087]
[1739629200433,0.03313151,194.52,194.49,0.03611087]
[1739629200830,0.03313151,194.52,194.5,5.1406]
[1739629202342,0.03313151,194.52,194.49,9.17450548]
[1739629202939,0.03313151,194.52,194.51,5.1403]
[1739629203840,0.03313151,194.52,194.5,5.1405]
[1739629204232,0.03313151,194.52,194.49,10.69800548]
[1739629204635,0.03313151,194.52,194.5,5.1404]
[1739629204941,0.03313151,194.52,194.49,1.55961087]
[1739629205835,0.03313151,194.52,194.49,0.03611087]
[1739629206230,5.1403,194.51,194.49,0.03611087]
[1739629207237,0.03313151,194.52,194.49,0.03611087]
[1739629209044,0.03313151,194.52,194.5,5.1406]
[1739629209236,0.03313151,194.52,194.49,0.03611087]
[1739629210042,0.03313151,194.52,194.5,5.1403]
[1739629211647,0.03313151,194.52,194.49,0.03611087]
[1739629211648,0.03313151,194.52,194.51,5.1403]
[1739629211947,0.03313151,194.52,194.49,0.03611087]
[1739629212845,0.03313151,194.52,194.5,5.1406]
[1739629213245,0.03313151,194.52,194.49,0.03611087]
[1739629213448,0.03313151,194.52,194.51,5.1403]
[1739629214660,0.03313151,194.52,194.49,0.03611087]
[1739629215949,0.03313151,194.52,194.49,5.17671087]
[1739629216149,0.03313151,194.52,194.49,0.03611087]
[1739629217555,5.1406,194.5,194.49,0.03611087]
[1739629220757,5.1404,194.51,194.49,0.03611087]
[1739629220959,0.03313151,194.52,194.49,0.03611087]
[1739629223059,5.1403,194.51,194.49,0.03611087]
[1739629223561,5.17323151,194.52,194.49,0.03611087]
[1739629223757,0.03313151,194.52,194.49,5.17691087]
[1739629224358,0.03313151,194.52,194.49,0.03611087]
[1739629225060,5.1403,194.51,194.49,0.03611087]
[1739629225466,0.03313151,194.52,194.49,0.03611087]
[1739629225656,14.27728809,194.51,194.49,0.03611087]
[1739629227463,9.13678809,194.51,194.49,0.03611087]
[1739629228158,0.03313151,194.52,194.49,0.03611087]
[1739629228363,0.03313151,194.52,194.49,9.17289896]
[1739629228961,0.03313151,194.52,194.51,5.1403]
[1739629229258,9.13678809,194.57,194.51,9.13678809]
[1739629230265,0.02878464,194.56,194.52,0.0362866]
[1739629230563,5.16798464,194.56,194.52,5.1762866]
[1739629231763,0.02878464,194.56,194.52,5.1762866]
[1739629232165,0.02878464,194.56,194.52,0.0362866]
[1739629232965,5.16798464,194.56,194.52,0.0362866]
[1739629233468,5.16798464,194.56,194.52,5.1762866]
[1739629234271,5.1395,194.54,194.52,0.0362866]
[1739629234465,9.13678809,194.53,194.52,0.0362866]
[1739629237069,9.13678809,194.55,194.52,0.0362866]
[1739629237366,14.27608809,194.55,194.52,0.0362866]
[1739629239268,9.13678809,194.55,194.52,0.0362866]
[1739629239471,5.1397,194.54,194.52,0.0362866]
[1739629240372,9.13678809,194.55,194.52,0.0362866]
[1739629241775,9.13678809,194.55,194.53,5.1396]
[1739629242476,9.13678809,194.55,194.52,5.1762866]
[1739629244075,5.16778464,194.56,194.52,5.1762866]
[1739629244076,0.02878464,194.56,194.52,0.0362866]
[1739629244275,0.02878464,194.56,194.53,9.13678809]
[1739629244777,0.02878464,194.56,194.54,5.1393]
[1739629245078,0.02878464,194.56,194.53,9.13678809]
[1739629245375,0.02878464,194.56,194.55,5.1392]
[1739629247775,9.13678809,194.61,194.53,9.13678809]
[1739629247974,9.13678809,194.63,194.55,9.13678809]
[1739629248176,24.96482034,194.65,194.57,9.13678809]
[1739629248376,9.13678809,194.65,194.6,5.1379]
[1739629248577,9.13678809,194.63,194.6,5.1379]
[1739629248977,14.27338809,194.65,194.6,0.03900933]
[1739629249171,9.13678809,194.65,194.57,9.13678809]
[1739629249578,5.1371,194.64,194.61,0.03543881]
[1739629250080,9.13678809,194.65,194.61,0.03543881]
[1739629250880,9.13678809,194.65,194.61,5.17283881]
[1739629252077,9.13678809,194.65,194.61,0.03543881]
[1739629253081,14.27358809,194.65,194.61,0.03543881]
[1739629254479,14.27358809,194.65,194.61,5.17303881]
[1739629254881,9.13678809,194.65,194.61,0.03543881]
[1739629255281,9.13678809,194.65,194.61,5.17313881]
[1739629255482,9.13678809,194.69,194.63,9.13678809]
[1739629256184,9.13678809,194.69,194.63,14.27388809]
[1739629256381,9.13678809,194.69,194.63,5.1371]
[1739629256786,14.27298809,194.67,194.63,5.1371]
[1739629257285,14.27298809,194.67,194.63,5.17105469]
[1739629258187,14.27258809,194.69,194.64,5.1368]
[1739629258687,9.13678809,194.69,194.64,5.1368]
[1739629258887,5.1358,194.68,194.64,5.1368]
[1739629259086,9.13678809,194.69,194.63,5.17105469]
[1739629259382,5.1363,194.67,194.63,5.17105469]
[1739629260285,5.1366,194.65,194.63,0.03395469]
[1739629260489,14.27338809,194.65,194.63,0.03395469]
[1739629260890,9.13678809,194.65,194.63,0.03395469]
[1739629261085,9.13678809,194.67,194.63,0.03395469]
[1739629262384,9.13678809,194.69,194.63,0.03395469]
[1739629262695,9.13678809,194.69,194.63,9.17074278]
[1739629262993,5.1361,194.67,194.64,5.1368]
[1739629263193,9.13678809,194.67,194.63,0.03395469]
[1739629264591,5.1369,194.65,194.63,0.03395469]
[1739629266291,5.1369,194.64,194.63,0.03395469]
[1739629267999,5.1381,194.6,194.53,9.13678809]
[1739629268196,9.13678809,194.6,194.53,9.13678809]
[1739629268496,9.13678809,194.56,194.51,12.38108809]
[1739629268698,9.13678809,194.56,194.51,3.2443]
[1739629269392,0.03395469,194.55,194.52,5.17718579]
[1739629269791,0.03395469,194.55,194.52,0.03718579]
[1739629272501,5.17325469,194.55,194.52,0.03718579]
[1739629274099,5.1398,194.53,194.52,0.03718579]
[1739629274599,5.1404,194.51,194.47,5.1414]
[1739629275097,54.62103906,194.67,194.43,1.5226]
[1739629275303,14.27828809,194.47,194.43,1.5226]
[1739629275499,14.27828809,194.47,194.42,15.56141872]
[1739629275695,14.27828809,194.47,194.43,0.03510277]
[1739629275895,9.17183731,194.47,194.43,5.17740277]
[1739629276094,0.03504922,194.47,194.43,9.17189086]
[1739629276300,0.03504922,194.47,194.45,9.13678809]
[1739629276701,0.03504922,194.47,194.46,5.1416]
[1739629277103,14.27608809,194.55,194.45,9.13678809]
[1739629277400,14.27608809,194.55,194.42,3.2655]
[1739629277401,14.27608809,194.55,194.49,9.13678809]
[1739629277796,9.13678809,194.55,194.49,9.13678809]
[1739629278302,0.03609126,194.54,194.5,0.03396463]
[1739629278509,0.03609126,194.54,194.51,5.1401]
[1739629278805,0.03609126,194.54,194.51,9.13678809]
[1739629279505,0.03609126,194.54,194.53,14.27658809]
[1739629281602,0.03609126,194.54,194.51,1.5487]
[1739629281805,0.03609126,194.54,194.51,5.1401]
[1739629282402,5.17559126,194.54,194.5,0.03396463]
[1739629282607,0.03609126,194.54,194.5,0.03396463]
[1739629283703,5.1403,194.51,194.5,0.03396463]
[1739629286507,14.2659527,194.53,194.45,5.1417]
[1739629286709,5.1408,194.5,194.45,5.1417]
[1739629287708,0.03679861,194.49,194.46,0.03585031]
[1739629288709,5.1411,194.48,194.46,0.03585031]
[1739629289508,5.1413,194.48,194.46,0.03585031]
[1739629290610,0.03679861,194.49,194.46,0.03585031]
[1739629291012,5.1414,194.47,194.46,0.03585031]
[1739629293812,14.2659527,194.47,194.34,14.2659527]
[1739629294212,14.2659527,194.47,194.37,5.1438]
[1739629294413,5.1427,194.43,194.37,5.1438]
[1739629294913,1.5142,194.48,194.38,0.03789543]
[1739629295112,0.03848336,194.42,194.38,0.03789543]
[1739629295408,14.2659527,194.5,194.37,14.2659527]
[1739629295605,14.2659527,194.5,194.38,0.0327533]
[1739629295806,0.03545314,194.45,194.4,14.2659527]
[1739629296005,0.03545314,194.45,194.43,5.1424]
[1739629296406,0.03545314,194.45,194.42,0.03414033]
[1739629296910,0.03545314,194.45,194.44,5.1422]
[1739629300420,19.4058527,194.53,194.43,14.2659527]
[1739629300721,205.2659527,194.56,194.43,14.2659527]
[1739629301325,205.2659527,194.56,194.49,5.1406]
[1739629301326,5.1396,194.54,194.49,5.1406]
[1739629301522,205.2659527,194.56,194.43,14.2659527]
[1739629301723,0.03556166,194.53,194.5,0.03660378]
[1739629302420,0.03556166,194.53,194.52,5.14]
[1739629302830,0.03556166,194.53,194.5,0.03660378]
[1739629303730,0.03556166,194.53,194.51,5.14]
[1739629304230,0.03556166,194.53,194.52,5.14]
[1739629306032,0.03556166,194.53,194.5,0.03660378]
[1739629306327,0.03556166,194.53,194.51,5.1402]
[1739629307633,0.03556166,194.53,194.5,5.17710378]
[1739629308133,0.03556166,194.53,194.51,5.1403]
[1739629308336,0.03556166,194.53,194.5,0.03660378]
[1739629308831,0.03556166,194.53,194.51,5.1403]
[1739629311231,0.03556166,194.53,194.5,0.03660378]
[1739629311431,0.03556166,194.53,194.5,5.17710378]
[1739629311727,9.16952984,194.53,194.5,0.03660378]
[1739629312633,0.03556166,194.53,194.5,0.03660378]
[1739629313039,0.03556166,194.53,194.51,5.1403]
[1739629314025,0.03556166,194.53,194.5,5.17710378]
[1739629314232,0.03556166,194.53,194.5,0.03660378]
[1739629314934,0.03556166,194.53,194.51,5.1402]
[1739629315538,0.03556166,194.53,194.5,0.03660378]
[1739629315740,0.03556166,194.53,194.5,5.17700378]
[1739629315930,0.03556166,194.53,194.5,0.03660378]
[1739629316234,0.03556166,194.53,194.51,5.1403]
[1739629317333,0.03556166,194.53,194.5,0.03660378]
[1739629317536,0.03556166,194.53,194.52,5.14]
[1739629318237,0.03556166,194.53,194.52,14.27396818]
[1739629318442,9.13396818,194.59,194.52,9.13396818]
[1739629318632,9.13396818,194.59,194.54,9.13396818]
[1739629319535,0.0348914,194.58,194.55,0.03455848]
[1739629320034,0.0348914,194.58,194.56,5.1387]
[1739629320539,0.0348914,194.58,194.57,5.1387]
[1739629321941,0.0348914,194.58,194.55,0.03455848]
[1739629322136,9.13396818,194.57,194.55,0.03455848]
[1739629322347,5.139,194.56,194.55,0.03455848]
[1739629323642,14.27713598,194.56,194.47,28.46399647]
[1739629323843,14.27713598,194.56,194.46,5.1414]
[1739629324240,5.1402,194.52,194.46,5.1414]
[1739629324441,14.27713598,194.56,194.46,5.1414]
[1739629324640,5.1395,194.55,194.49,5.1407]
[1739629324839,0.03451304,194.53,194.49,0.03406263]
[1739629325342,0.03451304,194.53,194.52,5.14]
[1739629328844,5.1385,194.58,194.49,0.03406263]
[1739629329047,5.1385,194.58,194.54,5.1394]
[1739629329249,5.1385,194.58,194.48,14.27713598]
[1739629329448,14.27713598,194.62,194.48,14.27713598]